[Event "Titled Tuesday Blitz February 07 Early 2023"]
[White "Kilic, Eray"]
[Black "Bruzon Batista, Lazaro"]
[WhiteFideId "44517173"]
[BlackFideId "3503739"]
[WhiteElo "2414"]
[BlackElo "2611"]
[Result "1-0"]
[Round "11"]
[TimeControl "180+2"]
[Date "2023.02.07"]
[WhiteClock "0:00:08"]
[BlackClock "0:00:04"]

1. e4 {[%clk 0:03:00]}  c5 {[%clk 0:02:58]} 2. Nf3 {[%clk 0:03:01]}  e6 {[%clk 0:02:59]} 3. c3 {[%clk 0:03:01]}  Nf6 {[%clk 0:02:57]} 4. e5 {[%clk 0:03:01]}  Nd5 {[%clk 0:02:57]} 5. d4 {[%clk 0:03:01]}  cxd4 {[%clk 0:02:58]} 6. cxd4 {[%clk 0:03:02]}  Nc6 {[%clk 0:02:55]} 7. Nc3 {[%clk 0:03:01]}  Nxc3 {[%clk 0:02:53]} 8. bxc3 {[%clk 0:03:02]}  d6 {[%clk 0:02:54]} 9. exd6 {[%clk 0:03:02]}  Bxd6 {[%clk 0:02:53]} 10. Bd3 {[%clk 0:03:02]}  Qc7 {[%clk 0:02:48]} 11. O-O {[%clk 0:03:02]}  h6 {[%clk 0:02:47]} 12. Qe2 {[%clk 0:03:02]}  O-O {[%clk 0:02:37]} 13. Rb1 {[%clk 0:02:58]}  b6 {[%clk 0:02:29]} 14. c4 {[%clk 0:02:52]}  Bd7 {[%clk 0:01:50]} 15. Bd2 {[%clk 0:02:38]}  Rae8 {[%clk 0:01:49]} 16. Rfc1 {[%clk 0:02:29]}  Ba3 {[%clk 0:01:35]} 17. Rc3 {[%clk 0:02:25]}  Bb4 {[%clk 0:01:32]} 18. Rc2 {[%clk 0:02:15]}  Bxd2 {[%clk 0:01:32]} 19. Qxd2 {[%clk 0:02:13]}  Rd8 {[%clk 0:01:31]} 20. d5 {[%clk 0:02:06]}  Ne5 {[%clk 0:01:25]} 21. Nxe5 {[%clk 0:02:01]}  Qxe5 {[%clk 0:01:25]} 22. Re1 {[%clk 0:02:01]}  Qd6 {[%clk 0:01:16]} 23. Be4 {[%clk 0:01:59]}  exd5 {[%clk 0:01:13]} 24. cxd5 {[%clk 0:01:59]}  Rfe8 {[%clk 0:01:11]} 25. Bf3 {[%clk 0:01:55]}  Rxe1+ {[%clk 0:01:09]} 26. Qxe1 {[%clk 0:01:56]}  Kf8 {[%clk 0:01:06]} 27. h3 {[%clk 0:01:54]}  Re8 {[%clk 0:00:56]} 28. Qd2 {[%clk 0:01:52]}  Rc8 {[%clk 0:00:48]} 29. Rxc8+ {[%clk 0:01:45]}  Bxc8 {[%clk 0:00:48]} 30. Qc2 {[%clk 0:01:45]}  Bd7 {[%clk 0:00:47]} 31. Qh7 {[%clk 0:01:42]}  Qf6 {[%clk 0:00:45]} 32. Qh8+ {[%clk 0:01:35]}  Ke7 {[%clk 0:00:45]} 33. Qb8 {[%clk 0:01:35]}  a5 {[%clk 0:00:43]} 34. Qc7 {[%clk 0:01:33]}  Qd6 {[%clk 0:00:41]} 35. Qc3 {[%clk 0:01:33]}  f6 {[%clk 0:00:40]} 36. Qe3+ {[%clk 0:01:33]}  Kd8 {[%clk 0:00:39]} 37. Qd3 {[%clk 0:01:32]}  b5 {[%clk 0:00:35]} 38. Qg6 {[%clk 0:01:28]}  Qe7 {[%clk 0:00:33]} 39. Qd3 {[%clk 0:01:21]}  Kc7 {[%clk 0:00:30]} 40. Qc3+ {[%clk 0:01:20]}  Kb6 {[%clk 0:00:29]} 41. Qd4+ {[%clk 0:01:15]}  Qc5 {[%clk 0:00:29]} 42. Qf4 {[%clk 0:01:16]}  Qc7 {[%clk 0:00:22]} 43. Qd4+ {[%clk 0:01:15]}  Qc5 {[%clk 0:00:22]} 44. Qf4 {[%clk 0:01:15]}  Ka7 {[%clk 0:00:22]} 45. Qe4 {[%clk 0:01:08]}  b4 {[%clk 0:00:21]} 46. d6 {[%clk 0:01:06]}  Qc8 {[%clk 0:00:06]} 47. Qd4+ {[%clk 0:00:56]}  Ka6 {[%clk 0:00:07]} 48. Be2+ {[%clk 0:00:45]}  Kb7 {[%clk 0:00:06]} 49. Qd5+ {[%clk 0:00:30]}  Kb6 {[%clk 0:00:05]} 50. Bf3 {[%clk 0:00:27]}  a4 {[%clk 0:00:05]} 51. Qd4+ {[%clk 0:00:24]}  Qc5 {[%clk 0:00:04]} 52. Qd1 {[%clk 0:00:18]}  a3 {[%clk 0:00:03]} 53. g3 {[%clk 0:00:17]}  Qe5 {[%clk 0:00:03]} 54. Qb3 {[%clk 0:00:13]}  Kc5 {[%clk 0:00:03]} 55. Qc2+ {[%clk 0:00:09]}  Kxd6 {[%clk 0:00:03]} 56. Qd2+ {[%clk 0:00:09]}  Ke7 {[%clk 0:00:04]} 57. Qxb4+ {[%clk 0:00:09]}  Qd6 {[%clk 0:00:04]} 58. Qe4+ {[%clk 0:00:09]}  Be6 {[%clk 0:00:05]} 59. Bg4 {[%clk 0:00:09]}  Qe5 {[%clk 0:00:03]} 60. Qb4+ {[%clk 0:00:08]}  Kf7 {[%clk 0:00:03]} 61. Bxe6+ {[%clk 0:00:07]}  Qxe6 {[%clk 0:00:03]} 62. Qxa3 {[%clk 0:00:07]}  Qe1+ {[%clk 0:00:04]} 63. Kg2 {[%clk 0:00:08]}  Qe4+ {[%clk 0:00:04]} 64. Qf3 {[%clk 0:00:08]}  Qc4 {[%clk 0:00:04]} 65. Qb3 {[%clk 0:00:08]} 1-0


[Site "https://www.chess.com"]

[Event "Titled Tuesday Blitz February 07 Early 2023"]
[White "Zemlyanskii, Ivan"]
[Black "Samunenkov, Ihor"]
[WhiteFideId "24249971"]
[BlackFideId "14187086"]
[WhiteElo "2300"]
[BlackElo "2501"]
[Result "1-0"]
[Round "11"]
[TimeControl "180+2"]
[Date "2023.02.07"]
[WhiteClock "0:00:22"]
[BlackClock "0:00:02"]

1. d4 {[%clk 0:03:00]}  d5 {[%clk 0:02:58]} 2. c4 {[%clk 0:03:00]}  e6 {[%clk 0:02:58]} 3. Nc3 {[%clk 0:02:56]}  a6 {[%clk 0:02:56]} 4. e3 {[%clk 0:02:48]}  Nf6 {[%clk 0:02:55]} 5. b3 {[%clk 0:02:45]}  c5 {[%clk 0:02:50]} 6. Nf3 {[%clk 0:02:41]}  Nc6 {[%clk 0:02:48]} 7. cxd5 {[%clk 0:02:33]}  exd5 {[%clk 0:02:46]} 8. Bb2 {[%clk 0:02:30]}  Bg4 {[%clk 0:02:29]} 9. Be2 {[%clk 0:02:20]}  Bxf3 {[%clk 0:02:15]} 10. Bxf3 {[%clk 0:02:17]}  cxd4 {[%clk 0:02:15]} 11. exd4 {[%clk 0:02:18]}  Bb4 {[%clk 0:02:16]} 12. O-O {[%clk 0:02:18]}  O-O {[%clk 0:02:15]} 13. Rc1 {[%clk 0:02:11]}  Bxc3 {[%clk 0:02:11]} 14. Rxc3 {[%clk 0:02:06]}  Re8 {[%clk 0:02:02]} 15. Rc5 {[%clk 0:01:59]}  Ne4 {[%clk 0:01:56]} 16. Bxe4 {[%clk 0:01:58]}  Rxe4 {[%clk 0:01:57]} 17. Qh5 {[%clk 0:01:57]}  Qe7 {[%clk 0:01:17]} 18. Rxd5 {[%clk 0:01:40]}  Re1 {[%clk 0:01:16]} 19. Qf3 {[%clk 0:01:23]}  Re8 {[%clk 0:01:08]} 20. g3 {[%clk 0:01:23]}  h6 {[%clk 0:00:40]} 21. Bc3 {[%clk 0:01:16]}  Rxf1+ {[%clk 0:00:33]} 22. Kxf1 {[%clk 0:01:17]}  Qe6 {[%clk 0:00:28]} 23. Rf5 {[%clk 0:01:12]}  g6 {[%clk 0:00:20]} 24. Rf4 {[%clk 0:00:52]}  Qh3+ {[%clk 0:00:15]} 25. Kg1 {[%clk 0:00:46]}  Rd8 {[%clk 0:00:07]} 26. d5 {[%clk 0:00:45]}  Ne7 {[%clk 0:00:06]} 27. Rxf7 {[%clk 0:00:36]}  Nf5 {[%clk 0:00:06]} 28. Rc7 {[%clk 0:00:30]}  Rf8 {[%clk 0:00:04]} 29. Qe4 {[%clk 0:00:26]}  Qh5 {[%clk 0:00:02]} 30. Qe6+ {[%clk 0:00:22]} 1-0


[Site "https://www.chess.com"]

[Event "Titled Tuesday Blitz February 07 Early 2023"]
[White "Vakhlamov, Igor L."]
[Black "Szpar, Milosz"]
[WhiteFideId "24126748"]
[BlackFideId "1184989"]
[WhiteElo "2413"]
[BlackElo "2447"]
[Result "1-0"]
[Round "11"]
[TimeControl "180+2"]
[Date "2023.02.07"]
[WhiteClock "0:00:43"]
[BlackClock "0:00:04"]

1. e4 {[%clk 0:03:00]}  c5 {[%clk 0:02:57]} 2. Nf3 {[%clk 0:03:00]}  d6 {[%clk 0:02:56]} 3. Nc3 {[%clk 0:03:01]}  Nc6 {[%clk 0:02:55]} 4. Bb5 {[%clk 0:03:01]}  Bd7 {[%clk 0:02:54]} 5. Bxc6 {[%clk 0:03:01]}  Bxc6 {[%clk 0:02:47]} 6. d4 {[%clk 0:03:01]}  cxd4 {[%clk 0:02:48]} 7. Qxd4 {[%clk 0:03:02]}  Nf6 {[%clk 0:02:46]} 8. Bg5 {[%clk 0:03:02]}  e6 {[%clk 0:02:46]} 9. O-O-O {[%clk 0:03:03]}  Be7 {[%clk 0:02:46]} 10. Rhe1 {[%clk 0:03:03]}  O-O {[%clk 0:02:33]} 11. e5 {[%clk 0:03:03]}  dxe5 {[%clk 0:02:28]} 12. Nxe5 {[%clk 0:03:04]}  Qa5 {[%clk 0:02:10]} 13. Nxc6 {[%clk 0:03:02]}  bxc6 {[%clk 0:01:56]} 14. Qe5 {[%clk 0:03:00]}  Qa6 {[%clk 0:01:23]} 15. Kb1 {[%clk 0:02:50]}  Rfe8 {[%clk 0:01:17]} 16. Ne4 {[%clk 0:02:42]}  Nxe4 {[%clk 0:01:02]} 17. Rxe4 {[%clk 0:02:43]}  Bf8 {[%clk 0:00:56]} 18. Rg4 {[%clk 0:02:16]}  Qb5 {[%clk 0:00:56]} 19. Bf6 {[%clk 0:02:06]}  Qxe5 {[%clk 0:00:52]} 20. Bxe5 {[%clk 0:02:07]}  Rad8 {[%clk 0:00:52]} 21. Rxd8 {[%clk 0:02:06]}  Rxd8 {[%clk 0:00:53]} 22. Kc1 {[%clk 0:02:04]}  Rd5 {[%clk 0:00:51]} 23. Bb8 {[%clk 0:01:46]}  Bc5 {[%clk 0:00:50]} 24. Bg3 {[%clk 0:01:42]}  f5 {[%clk 0:00:47]} 25. Rc4 {[%clk 0:01:42]}  e5 {[%clk 0:00:43]} 26. b4 {[%clk 0:01:33]}  Be7 {[%clk 0:00:43]} 27. f3 {[%clk 0:01:20]}  Rb5 {[%clk 0:00:18]} 28. c3 {[%clk 0:01:14]}  a5 {[%clk 0:00:18]} 29. a4 {[%clk 0:01:10]}  Rd5 {[%clk 0:00:18]} 30. Be1 {[%clk 0:01:03]}  Rd6 {[%clk 0:00:11]} 31. bxa5 {[%clk 0:00:59]}  Rd5 {[%clk 0:00:08]} 32. a6 {[%clk 0:00:56]}  c5 {[%clk 0:00:07]} 33. Bf2 {[%clk 0:00:50]}  Rd8 {[%clk 0:00:03]} 34. Bxc5 {[%clk 0:00:47]}  Bg5+ {[%clk 0:00:03]} 35. Kb1 {[%clk 0:00:45]}  Rb8+ {[%clk 0:00:04]} 36. Rb4 {[%clk 0:00:42]}  Ra8 {[%clk 0:00:04]} 37. a7 {[%clk 0:00:43]}  Kf7 {[%clk 0:00:04]} 38. Rb8 {[%clk 0:00:43]} 1-0


[Site "https://www.chess.com"]

[Event "Titled Tuesday Blitz February 07 Early 2023"]
[White "Harshavardhan G B"]
[Black "Vasquez Schroeder, Rodrigo"]
[WhiteFideId "25059009"]
[BlackFideId "3400042"]
[WhiteElo "2408"]
[BlackElo "2524"]
[Result "1-0"]
[Round "11"]
[TimeControl "180+2"]
[Date "2023.02.07"]
[WhiteClock "0:00:50"]
[BlackClock "0:00:18"]

1. d4 {[%clk 0:03:00]}  Nf6 {[%clk 0:02:57]} 2. c4 {[%clk 0:02:58]}  e6 {[%clk 0:02:57]} 3. Nc3 {[%clk 0:02:57]}  Bb4 {[%clk 0:02:56]} 4. f3 {[%clk 0:02:55]}  d5 {[%clk 0:02:53]} 5. a3 {[%clk 0:02:54]}  Bxc3+ {[%clk 0:02:53]} 6. bxc3 {[%clk 0:02:54]}  c6 {[%clk 0:02:46]} 7. e3 {[%clk 0:02:51]}  O-O {[%clk 0:02:43]} 8. Bd3 {[%clk 0:02:42]}  b6 {[%clk 0:02:25]} 9. Ne2 {[%clk 0:02:41]}  Ba6 {[%clk 0:02:24]} 10. cxd5 {[%clk 0:02:41]}  Bxd3 {[%clk 0:02:20]} 11. Qxd3 {[%clk 0:02:41]}  cxd5 {[%clk 0:02:20]} 12. e4 {[%clk 0:02:42]}  h6 {[%clk 0:02:20]} 13. O-O {[%clk 0:02:40]}  Nc6 {[%clk 0:02:20]} 14. e5 {[%clk 0:02:40]}  Nd7 {[%clk 0:02:13]} 15. f4 {[%clk 0:02:40]}  f5 {[%clk 0:02:13]} 16. exf6 {[%clk 0:02:37]}  Nxf6 {[%clk 0:02:12]} 17. Ng3 {[%clk 0:02:36]}  Qd7 {[%clk 0:02:08]} 18. Bd2 {[%clk 0:02:32]}  Rae8 {[%clk 0:02:07]} 19. Rae1 {[%clk 0:02:32]}  Na5 {[%clk 0:01:57]} 20. f5 {[%clk 0:02:31]}  Nc4 {[%clk 0:01:57]} 21. fxe6 {[%clk 0:02:31]}  Rxe6 {[%clk 0:01:58]} 22. Rxe6 {[%clk 0:02:19]}  Qxe6 {[%clk 0:01:58]} 23. Bxh6 {[%clk 0:02:18]}  Ne4 {[%clk 0:01:49]} 24. Rxf8+ {[%clk 0:02:12]}  Kxf8 {[%clk 0:01:49]} 25. Bf4 {[%clk 0:02:03]}  Nxa3 {[%clk 0:01:35]} 26. Qa6 {[%clk 0:01:56]}  Nc4 {[%clk 0:01:28]} 27. h3 {[%clk 0:01:49]}  Nxg3 {[%clk 0:01:18]} 28. Bxg3 {[%clk 0:01:48]}  Qd7 {[%clk 0:01:15]} 29. Kh2 {[%clk 0:01:46]}  Kg8 {[%clk 0:01:14]} 30. Bf4 {[%clk 0:01:42]}  Kh7 {[%clk 0:01:12]} 31. Bb8 {[%clk 0:01:38]}  Ne3 {[%clk 0:01:00]} 32. Qxa7 {[%clk 0:01:29]}  Qf5 {[%clk 0:00:57]} 33. Be5 {[%clk 0:01:26]}  Qg6 {[%clk 0:00:57]} 34. Qa2 {[%clk 0:01:24]}  b5 {[%clk 0:00:48]} 35. Qe2 {[%clk 0:01:19]}  Qe4 {[%clk 0:00:47]} 36. Qh5+ {[%clk 0:01:16]}  Kg8 {[%clk 0:00:47]} 37. Qg5 {[%clk 0:01:14]}  Nf5 {[%clk 0:00:40]} 38. Qg6 {[%clk 0:01:06]}  Kf8 {[%clk 0:00:32]} 39. Qe6 {[%clk 0:01:01]}  Ne7 {[%clk 0:00:21]} 40. Qd7 {[%clk 0:00:50]}  Kg8 {[%clk 0:00:18]} 41. Qxe7 {[%clk 0:00:50]} 1-0


[Site "https://www.chess.com"]

[Event "Titled Tuesday Blitz February 07 Early 2023"]
[White "Zierk, Steven"]
[Black "Zahid, Sanatan"]
[WhiteFideId "2034255"]
[BlackFideId "10201963"]
[WhiteElo "2488"]
[BlackElo "1930"]
[Result "1-0"]
[Round "11"]
[TimeControl "180+2"]
[Date "2023.02.07"]
[WhiteClock "0:01:35"]
[BlackClock "0:01:14"]

1. e4 {[%clk 0:03:00]}  e6 {[%clk 0:02:50]} 2. d4 {[%clk 0:03:00]}  d5 {[%clk 0:02:49]} 3. Nc3 {[%clk 0:03:01]}  Nf6 {[%clk 0:02:49]} 4. Bg5 {[%clk 0:03:00]}  Be7 {[%clk 0:02:42]} 5. e5 {[%clk 0:02:56]}  Nfd7 {[%clk 0:02:41]} 6. Bxe7 {[%clk 0:02:57]}  Qxe7 {[%clk 0:02:39]} 7. f4 {[%clk 0:02:57]}  a6 {[%clk 0:02:40]} 8. Nf3 {[%clk 0:02:56]}  c5 {[%clk 0:02:40]} 9. Qd2 {[%clk 0:02:53]}  Nc6 {[%clk 0:02:40]} 10. dxc5 {[%clk 0:02:53]}  b5 {[%clk 0:02:41]} 11. Bd3 {[%clk 0:02:47]}  Nxc5 {[%clk 0:02:41]} 12. O-O {[%clk 0:02:47]}  Bb7 {[%clk 0:02:41]} 13. a3 {[%clk 0:02:47]}  O-O-O {[%clk 0:02:39]} 14. Qf2 {[%clk 0:02:42]}  Kb8 {[%clk 0:02:38]} 15. b4 {[%clk 0:02:40]}  Nd7 {[%clk 0:02:36]} 16. Rfb1 {[%clk 0:02:35]}  Rc8 {[%clk 0:02:35]} 17. Ne2 {[%clk 0:02:32]}  Qd8 {[%clk 0:02:29]} 18. a4 {[%clk 0:02:28]}  bxa4 {[%clk 0:02:13]} 19. Rxa4 {[%clk 0:02:27]}  Nb6 {[%clk 0:02:13]} 20. Ra3 {[%clk 0:02:22]}  Nc4 {[%clk 0:02:08]} 21. Bxc4 {[%clk 0:02:21]}  dxc4 {[%clk 0:02:09]} 22. Nfd4 {[%clk 0:02:12]}  Nxd4 {[%clk 0:02:07]} 23. Nxd4 {[%clk 0:02:12]}  Qb6 {[%clk 0:02:00]} 24. b5 {[%clk 0:02:10]}  a5 {[%clk 0:01:57]} 25. c3 {[%clk 0:02:06]}  Rhd8 {[%clk 0:01:56]} 26. Rba1 {[%clk 0:02:06]}  Kc7 {[%clk 0:01:44]} 27. Rxa5 {[%clk 0:02:04]}  Kd7 {[%clk 0:01:41]} 28. f5 {[%clk 0:01:57]}  exf5 {[%clk 0:01:36]} 29. Qxf5+ {[%clk 0:01:46]}  Ke7 {[%clk 0:01:34]} 30. Rf1 {[%clk 0:01:44]}  Bd5 {[%clk 0:01:29]} 31. Ra6 {[%clk 0:01:42]}  Qc5 {[%clk 0:01:25]} 32. e6 {[%clk 0:01:39]}  f6 {[%clk 0:01:14]} 33. Qxh7 {[%clk 0:01:39]}  Rg8 {[%clk 0:01:14]} 34. Rxf6 {[%clk 0:01:35]} 1-0


[Site "https://www.chess.com"]

[Event "Titled Tuesday Blitz February 07 Early 2023"]
[White "Timofeev, Artyom"]
[Black "Lianes Garcia, Marcos"]
[WhiteFideId "4140419"]
[BlackFideId "32060777"]
[WhiteElo "2567"]
[BlackElo "2411"]
[Result "1-0"]
[Round "11"]
[TimeControl "180+2"]
[Date "2023.02.07"]
[WhiteClock "0:00:34"]
[BlackClock "0:00:16"]

1. e4 {[%clk 0:03:00]}  g6 {[%clk 0:02:56]} 2. d4 {[%clk 0:03:00]}  Bg7 {[%clk 0:02:57]} 3. Nc3 {[%clk 0:03:00]}  c5 {[%clk 0:02:58]} 4. dxc5 {[%clk 0:02:58]}  Bxc3+ {[%clk 0:02:57]} 5. bxc3 {[%clk 0:02:58]}  Qa5 {[%clk 0:02:58]} 6. Bd2 {[%clk 0:02:55]}  Nc6 {[%clk 0:02:58]} 7. Nf3 {[%clk 0:02:54]}  Nf6 {[%clk 0:02:58]} 8. Bd3 {[%clk 0:02:54]}  Qxc5 {[%clk 0:02:58]} 9. O-O {[%clk 0:02:53]}  d6 {[%clk 0:02:54]} 10. h3 {[%clk 0:02:52]}  O-O {[%clk 0:02:42]} 11. Bh6 {[%clk 0:02:50]}  Rd8 {[%clk 0:02:40]} 12. Qd2 {[%clk 0:02:50]}  a6 {[%clk 0:02:37]} 13. a4 {[%clk 0:02:34]}  Ne5 {[%clk 0:02:36]} 14. Nd4 {[%clk 0:02:31]}  Nc4 {[%clk 0:02:32]} 15. Qe2 {[%clk 0:02:29]}  Ne5 {[%clk 0:02:32]} 16. Bd2 {[%clk 0:02:27]}  Nc6 {[%clk 0:02:25]} 17. Nb3 {[%clk 0:02:24]}  Qh5 {[%clk 0:02:21]} 18. f3 {[%clk 0:02:19]}  Be6 {[%clk 0:02:17]} 19. Nd4 {[%clk 0:02:18]}  Kg7 {[%clk 0:02:12]} 20. Rab1 {[%clk 0:02:16]}  Rd7 {[%clk 0:02:03]} 21. Nxe6+ {[%clk 0:02:07]}  fxe6 {[%clk 0:02:04]} 22. Be3 {[%clk 0:02:07]}  Ne5 {[%clk 0:02:00]} 23. Bd4 {[%clk 0:02:05]}  Rc8 {[%clk 0:01:58]} 24. Qf2 {[%clk 0:02:03]}  Nxd3 {[%clk 0:01:56]} 25. cxd3 {[%clk 0:01:55]}  e5 {[%clk 0:01:56]} 26. Be3 {[%clk 0:01:55]}  Rxc3 {[%clk 0:01:55]} 27. d4 {[%clk 0:01:49]}  exd4 {[%clk 0:01:52]} 28. Bxd4 {[%clk 0:01:49]}  Rc4 {[%clk 0:01:53]} 29. Rfe1 {[%clk 0:01:38]}  Qa5 {[%clk 0:01:48]} 30. e5 {[%clk 0:01:32]}  dxe5 {[%clk 0:01:46]} 31. Bxe5 {[%clk 0:01:33]}  Rd2 {[%clk 0:01:39]} 32. Bxf6+ {[%clk 0:01:23]}  Kxf6 {[%clk 0:01:33]} 33. Qg3 {[%clk 0:00:58]}  Qc5+ {[%clk 0:01:20]} 34. Kh1 {[%clk 0:00:57]}  b5 {[%clk 0:01:13]} 35. axb5 {[%clk 0:00:57]}  axb5 {[%clk 0:01:14]} 36. Ra1 {[%clk 0:00:57]}  Rd6 {[%clk 0:01:09]} 37. Ra8 {[%clk 0:00:53]}  Kf7 {[%clk 0:00:48]} 38. Rh8 {[%clk 0:00:45]}  Qh5 {[%clk 0:00:35]} 39. Qf2 {[%clk 0:00:38]}  Rcc6 {[%clk 0:00:32]} 40. Qa2+ {[%clk 0:00:36]}  Re6 {[%clk 0:00:30]} 41. Rd1 {[%clk 0:00:35]}  Kg7 {[%clk 0:00:15]} 42. Qa8 {[%clk 0:00:35]}  Qf5 {[%clk 0:00:15]} 43. Qg8+ {[%clk 0:00:34]}  Kh6 {[%clk 0:00:15]} 44. Qxh7+ {[%clk 0:00:34]}  Kg5 {[%clk 0:00:16]} 45. Qh4# {[%clk 0:00:34]} 1-0


[Site "https://www.chess.com"]

[Event "Titled Tuesday Blitz February 07 Early 2023"]
[White "Gharibyan, Mamikon"]
[Black "Dehtiarov, Roman"]
[WhiteFideId "13308300"]
[BlackFideId "14186640"]
[WhiteElo "2500"]
[BlackElo "2289"]
[Result "1-0"]
[Round "11"]
[TimeControl "180+2"]
[Date "2023.02.07"]
[WhiteClock "0:00:20"]
[BlackClock "0:00:02"]

1. Nf3 {[%clk 0:03:00]}  Nf6 {[%clk 0:02:59]} 2. g3 {[%clk 0:02:59]}  d5 {[%clk 0:02:59]} 3. Bg2 {[%clk 0:02:59]}  c5 {[%clk 0:03:00]} 4. O-O {[%clk 0:02:59]}  Nc6 {[%clk 0:03:00]} 5. d4 {[%clk 0:02:55]}  cxd4 {[%clk 0:02:58]} 6. Nxd4 {[%clk 0:02:56]}  e6 {[%clk 0:02:59]} 7. c4 {[%clk 0:02:54]}  Be7 {[%clk 0:02:58]} 8. Nc3 {[%clk 0:02:54]}  O-O {[%clk 0:02:58]} 9. cxd5 {[%clk 0:02:53]}  exd5 {[%clk 0:02:57]} 10. Bf4 {[%clk 0:02:49]}  Bg4 {[%clk 0:02:53]} 11. Rc1 {[%clk 0:02:47]}  Qb6 {[%clk 0:02:44]} 12. Nxc6 {[%clk 0:02:32]}  bxc6 {[%clk 0:02:45]} 13. h3 {[%clk 0:02:29]}  Bh5 {[%clk 0:02:45]} 14. Na4 {[%clk 0:02:18]}  Qb7 {[%clk 0:02:40]} 15. b3 {[%clk 0:02:14]}  Rfe8 {[%clk 0:02:38]} 16. Qc2 {[%clk 0:02:10]}  Ba3 {[%clk 0:02:31]} 17. Qxc6 {[%clk 0:02:09]}  Qxc6 {[%clk 0:02:30]} 18. Rxc6 {[%clk 0:02:08]}  Bxe2 {[%clk 0:02:31]} 19. Re1 {[%clk 0:01:53]}  Bb5 {[%clk 0:02:22]} 20. Rxe8+ {[%clk 0:01:52]}  Rxe8 {[%clk 0:02:23]} 21. Rc7 {[%clk 0:01:52]}  Bxa4 {[%clk 0:02:18]} 22. bxa4 {[%clk 0:01:52]}  a5 {[%clk 0:02:15]} 23. Be3 {[%clk 0:01:49]}  h6 {[%clk 0:02:08]} 24. Ra7 {[%clk 0:01:35]}  Bb4 {[%clk 0:02:06]} 25. Bd4 {[%clk 0:01:30]}  Ne4 {[%clk 0:02:05]} 26. h4 {[%clk 0:01:22]}  Bc3 {[%clk 0:01:33]} 27. Bb6 {[%clk 0:01:16]}  d4 {[%clk 0:00:27]} 28. Bxa5 {[%clk 0:00:44]}  Bxa5 {[%clk 0:00:27]} 29. Rxa5 {[%clk 0:00:43]}  Nc3 {[%clk 0:00:27]} 30. Bf1 {[%clk 0:00:42]}  g6 {[%clk 0:00:14]} 31. Ra7 {[%clk 0:00:34]}  Ne2+ {[%clk 0:00:08]} 32. Kg2 {[%clk 0:00:33]}  d3 {[%clk 0:00:08]} 33. Rd7 {[%clk 0:00:31]}  Nc1 {[%clk 0:00:02]} 34. Bxd3 {[%clk 0:00:28]}  Kg7 {[%clk 0:00:01]} 35. Bc4 {[%clk 0:00:26]}  Rc8 {[%clk 0:00:01]} 36. Rxf7+ {[%clk 0:00:25]}  Kh8 {[%clk 0:00:01]} 37. Rf4 {[%clk 0:00:24]}  g5 {[%clk 0:00:01]} 38. hxg5 {[%clk 0:00:25]}  hxg5 {[%clk 0:00:02]} 39. Rg4 {[%clk 0:00:25]}  Kh7 {[%clk 0:00:02]} 40. a5 {[%clk 0:00:24]}  Kh6 {[%clk 0:00:02]} 41. a6 {[%clk 0:00:24]}  Kh5 {[%clk 0:00:03]} 42. Re4 {[%clk 0:00:24]}  Kg6 {[%clk 0:00:02]} 43. a7 {[%clk 0:00:23]}  Ra8 {[%clk 0:00:02]} 44. Re7 {[%clk 0:00:22]}  Kf6 {[%clk 0:00:02]} 45. Bd5 {[%clk 0:00:20]} 1-0


[Site "https://www.chess.com"]

[Event "Titled Tuesday Blitz February 07 Early 2023"]
[White "Seo, Jung Min"]
[Black "Pakleza, Zbigniew"]
[WhiteFideId "1734687"]
[BlackFideId "1119290"]
[WhiteElo "2494"]
[BlackElo "2494"]
[Result "1-0"]
[Round "11"]
[TimeControl "180+2"]
[Date "2023.02.07"]
[WhiteClock "0:00:23"]
[BlackClock "0:00:01"]

1. e4 {[%clk 0:02:58]}  d6 {[%clk 0:03:00]} 2. Nf3 {[%clk 0:02:57]}  Nf6 {[%clk 0:03:01]} 3. Nc3 {[%clk 0:02:57]}  Bg4 {[%clk 0:03:01]} 4. h3 {[%clk 0:02:57]}  Bh5 {[%clk 0:03:02]} 5. g4 {[%clk 0:02:53]}  Bg6 {[%clk 0:03:02]} 6. Qe2 {[%clk 0:02:53]}  c6 {[%clk 0:03:03]} 7. Nh4 {[%clk 0:02:50]}  e6 {[%clk 0:03:01]} 8. Nxg6 {[%clk 0:02:46]}  hxg6 {[%clk 0:03:01]} 9. d4 {[%clk 0:02:43]}  d5 {[%clk 0:02:58]} 10. e5 {[%clk 0:02:40]}  Nfd7 {[%clk 0:02:58]} 11. Bd2 {[%clk 0:02:40]}  c5 {[%clk 0:02:58]} 12. dxc5 {[%clk 0:02:38]}  Nc6 {[%clk 0:02:56]} 13. f4 {[%clk 0:02:38]}  Qh4+ {[%clk 0:02:50]} 14. Qf2 {[%clk 0:02:36]}  Qxf2+ {[%clk 0:02:48]} 15. Kxf2 {[%clk 0:02:36]}  Bxc5+ {[%clk 0:02:47]} 16. Kg2 {[%clk 0:02:36]}  O-O-O {[%clk 0:02:27]} 17. Bd3 {[%clk 0:02:29]}  g5 {[%clk 0:02:15]} 18. fxg5 {[%clk 0:02:28]}  Ndxe5 {[%clk 0:02:11]} 19. Ne2 {[%clk 0:02:24]}  Nxd3 {[%clk 0:01:43]} 20. cxd3 {[%clk 0:02:24]}  Kd7 {[%clk 0:01:37]} 21. Rac1 {[%clk 0:02:22]}  Bb4 {[%clk 0:01:24]} 22. Bf4 {[%clk 0:02:13]}  Bd6 {[%clk 0:01:23]} 23. Bxd6 {[%clk 0:02:08]}  Kxd6 {[%clk 0:01:24]} 24. Rhf1 {[%clk 0:02:04]}  Rdf8 {[%clk 0:01:14]} 25. Kg3 {[%clk 0:01:59]}  f6 {[%clk 0:00:58]} 26. gxf6 {[%clk 0:01:56]}  gxf6 {[%clk 0:00:59]} 27. Nf4 {[%clk 0:01:49]}  Rfg8 {[%clk 0:00:57]} 28. Rce1 {[%clk 0:01:45]}  Nd4 {[%clk 0:00:53]} 29. Ne2 {[%clk 0:01:41]}  Nf5+ {[%clk 0:00:39]} 30. Kf2 {[%clk 0:01:40]}  Ne7 {[%clk 0:00:27]} 31. Kg2 {[%clk 0:01:35]}  f5 {[%clk 0:00:23]} 32. Nd4 {[%clk 0:01:34]}  Rh6 {[%clk 0:00:22]} 33. Rf4 {[%clk 0:01:34]}  fxg4 {[%clk 0:00:18]} 34. Rxg4 {[%clk 0:01:33]}  Rgh8 {[%clk 0:00:18]} 35. Rg3 {[%clk 0:01:28]}  e5 {[%clk 0:00:17]} 36. Nf3 {[%clk 0:01:25]}  Nc6 {[%clk 0:00:18]} 37. h4 {[%clk 0:01:24]}  Rf8 {[%clk 0:00:15]} 38. Rg5 {[%clk 0:01:21]}  Re6 {[%clk 0:00:15]} 39. h5 {[%clk 0:01:18]}  a5 {[%clk 0:00:14]} 40. a3 {[%clk 0:01:17]}  a4 {[%clk 0:00:14]} 41. Kg3 {[%clk 0:01:15]}  b5 {[%clk 0:00:14]} 42. Nh4 {[%clk 0:01:11]}  Nd4 {[%clk 0:00:12]} 43. Rg6 {[%clk 0:01:11]}  Rh8 {[%clk 0:00:07]} 44. Kg4 {[%clk 0:01:10]}  Rf8 {[%clk 0:00:06]} 45. Kg5 {[%clk 0:01:06]}  Rf2 {[%clk 0:00:05]} 46. h6 {[%clk 0:01:04]}  Rh2 {[%clk 0:00:04]} 47. Rxe6+ {[%clk 0:01:01]}  Nxe6+ {[%clk 0:00:04]} 48. Kg4 {[%clk 0:00:58]}  Nf8 {[%clk 0:00:02]} 49. Rf1 {[%clk 0:00:57]}  Ke7 {[%clk 0:00:02]} 50. Rc1 {[%clk 0:00:56]}  e4 {[%clk 0:00:02]} 51. dxe4 {[%clk 0:00:55]}  dxe4 {[%clk 0:00:03]} 52. Rc7+ {[%clk 0:00:55]}  Kf6 {[%clk 0:00:03]} 53. Rc6+ {[%clk 0:00:53]}  Kf7 {[%clk 0:00:02]} 54. Rc7+ {[%clk 0:00:45]}  Kg8 {[%clk 0:00:03]} 55. Nf5 {[%clk 0:00:34]}  e3 {[%clk 0:00:02]} 56. Nxe3 {[%clk 0:00:32]}  Rxh6 {[%clk 0:00:02]} 57. Rb7 {[%clk 0:00:30]}  Re6 {[%clk 0:00:02]} 58. Nd5 {[%clk 0:00:26]}  Rd6 {[%clk 0:00:01]} 59. Rxb5 {[%clk 0:00:26]}  Ne6 {[%clk 0:00:01]} 60. Nc3 {[%clk 0:00:25]}  Nd4 {[%clk 0:00:01]} 61. Rb8+ {[%clk 0:00:22]}  Kf7 {[%clk 0:00:01]} 62. Nxa4 {[%clk 0:00:23]} 1-0


[Site "https://www.chess.com"]